[Event "37th ECCC 2022"]
[Site "Mayrhofen"]
[Date "2022.10.06"]
[Round "3.11"]
[White "Anton Guijarro, David"]
[Black "Steinberg, Nitzan"]
[Result "1-0"]
[ECO "D30"]
[WhiteElo "2655"]
[BlackElo "2545"]
[Annotator "TA"]
[PlyCount "151"]
[EventDate "2022.10.03"]
[EventType "team-tourn"]
[EventCountry "AUT"]
[SourceTitle "playchess.com"]
[Source "ChessBase"]
[SourceQuality "1"]
[TimeControl "40/5400+30:1800+30"]

{[%evp 11,151,18,10,0,10,0,12,12,21,13,13,14,14,15,25,22,23,7,12,11,17,0,12,0,0,0,0,0,68,57,86,85,88,75,97,89,117,100,96,99,112,104,245,225,241,63,226,231,188,124,122,112,268,124,105,95,135,0,0,0,0,0,0,0,49,9,12,13,10,10,10,10,16,0,0,0,0,0,0,0,0,0,0,0,0,0,0,0,0,0,0,0,0,0,0,0,0,0,0,0,0,0,0,0,0,0,0,0,0,0,0,0,0,0,0,0,0,0,0,0,0,0,12846,12841,12842,0,0,0,0,0,12844,12845,12849,12849,12850,27999,27999,27999,27999,27999,27999,27999]} 1. d4 {[%emt 0:00:06]} d5 {[%emt 0:00:12]} 2. c4 {[%emt 0:00:14]} e6 {[%emt 0:00:07]} 3. Nf3 {[%emt 0:00:31]} Nf6 {[%emt 0:00:23]} 4. g3 {[%emt 0:00:35]} Bb4+ {[%emt 0:00:13]} 5. Bd2 {[%emt 0:00:38]} a5 {[%emt 0:00:07]} 6. Bg2 {[%emt 0:01:10]} O-O {[%emt 0:00:07]} 7. Qc1 {[%emt 0:02:46] 7.Qc2 is the modern continuation. E11: Bogo-Indian.} b6 {[%emt 0:14:52]} 8. O-O {[%emt 0:02:49] [#]} Ba6 $146 {[%emt 0:07:23]} ({Predecessor:} 8... Nbd7 9. cxd5 Bxd2 10. Qxd2 exd5 11. Nc3 Re8 12. Rfe1 Bb7 13. Rac1 c5 14. a4 Ne4 {½-½ (33) Pranav,A (2494)-Droin,A (2408) Mamaia 2022}) 9. Ne5 {[%emt 0:07:17] The position is equal.} c5 {[%emt 0:07:25]} 10. a3 {[%emt 0:07:33]} Bxd2 {[%emt 0:00:29]} 11. Qxd2 {[%emt 0:00:07]} Nbd7 {[%emt 0:10:28]} 12. Nxd7 {[%emt 0:02:24]} Qxd7 {[%emt 0:02:23]} 13. cxd5 {[%emt 0:00:29]} exd5 {[%emt 0:00:54]} 14. Nc3 {[%emt 0:03:21]} Rad8 {[%emt 0:08:59]} 15. Rfd1 {[%emt 0:20:38]} Rfe8 {[%emt 0:02:19]} 16. Qc2 {[%emt 0:04:47]} c4 {[%emt 0:03:27]} 17. a4 {[%emt 0:05:26]} h5 {[%emt 0:00:09]} 18. Rab1 {[%emt 0:03:10]} h4 {[%emt 0:08:10]} 19. b4 {[%emt 0:01:24]} hxg3 {[%emt 0:09:54]} (19... cxb3 $11 20. Rxb3 Qe6) 20. hxg3 $14 {[%emt 0:00:23]} Qg4 {[%emt 0:02:10]} 21. bxa5 {[%emt 0:02:40]} bxa5 {[%emt 0:00:05]} 22. Rb6 {[%emt 0:01:10]} Bc8 {[%emt 0:00:49]} 23. Bf3 $1 {[%emt 0:04:39]} Qh3 {[%emt 0:02:08] [#]} 24. Rxf6 {[%emt 0:01:24][%mdl 512]} gxf6 {[%emt 0:00:04]} 25. Nxd5 {[%emt 0:00:33][%mdl 64] Discovered Attack} Kg7 {[%emt 0:01:33][%cal Od8d5]} 26. Nf4 {[%emt 0:00:57]} Qh6 {[%emt 0:02:19]} (26... Qf5 $16 {was worth a try.} 27. Nh5+ (27. Qxc4 Bd7 $16) 27... Kg6 28. Nf4+ (28. Qxc4 Bd7 $16) 28... Kg7 29. Nh5+ (29. Qxc4 Rh8 $16) 29... Kg6 30. Nf4+ (30. Qxc4 Bd7 $16) 30... Kg7) 27. Qxc4 $18 {[%emt 0:04:32]} Qg5 {[%emt 0:00:38]} 28. d5 $2 {[%emt 0:05:56]} ({Better is} 28. Nh5+ $18 Kg8 29. Qc3) 28... Rh8 $2 {[%emt 0:02:57]} (28... Bg4 $14) 29. Qc7 $1 {[%emt 0:01:01]} Qe5 {[%emt 0:01:32] [#]} 30. Qxa5 {[%emt 0:01:04]} (30. Nh5+ $1 $18 {[%mdl 512]} Kg6 31. Qxa5) 30... Bf5 {[%emt 0:00:09]} 31. Qd2 {[%emt 0:04:11] Against Bc2} Ra8 $2 {[%emt 0:03:45]} (31... Be4 $16) 32. a5 {[%emt 0:01:18]} (32. Nh5+ $18 Kh7 33. Qa2) 32... Be4 $16 {[%emt 0:00:51]} 33. Kg2 {[%emt 0:02:43]} Rh6 {[%emt 0:03:06]} 34. Bxe4 {[%emt 0:03:58]} (34. Qb4 $1 $16 f5 35. Ne6+ $1 Kg8 36. Bxe4 Qxe4+ 37. Qxe4 fxe4 38. Nc7) 34... Qxe4+ $11 {[%emt 0:00:06]} 35. f3 {[%emt 0:00:03]} Qh7 {[%emt 0:01:52]} 36. Kf2 {[%emt 0:00:32]} Rh2+ {[%emt 0:00:39]} 37. Ng2 {[%emt 0:00:17]} Qf5 {[%emt 0:01:29]} (37... Qh3 $11 {is superior.} 38. Rg1 Qd7) 38. d6 {[%emt 0:02:47][%cal Bd5d6,Bd6d7][%mdl 32]} (38. Qb4 $5 {[%cal Rd1d4]}) 38... Qc5+ {[%emt 0:01:31]} (38... Qh3 $5 39. Rg1 $8 Qf5 $11) 39. Qd4 {[%emt 0:01:25]} Qxa5 {[%emt 0:00:19]} 40. d7 {[%emt 0:00:42]} Rd8 $1 {[%emt 0:01:04]} 41. Qd6 {[%emt 0:12:42]} Qe5 {[%emt 0:03:25]} 42. Qxe5 {[%emt 0:07:11] The board is on fire.} fxe5 {[%emt 0:00:04][%mdl 4096] Endgame KRR-KRN} 43. g4 {[%emt 0:00:04]} Kf6 {[%emt 0:17:53]} 44. Kg3 {[%emt 0:00:28]} Rhh8 {[%emt 0:00:43]} 45. Ne3 {[%emt 0:00:41] Strongly threatening Nf5.} Ke6 {[%emt 0:00:24]} 46. Nc4 {[%emt 0:00:41]} Rxd7 {[%emt 0:06:39]} 47. Rxd7 {[%emt 0:00:06]} Kxd7 {[%emt 0:00:02]} 48. Nxe5+ {[%emt 0:00:06] KR-KN} Ke6 {[%emt 0:00:03]} 49. Kf4 {[%emt 0:02:07]} Rh2 {[%emt 0:00:49]} 50. e4 {[%emt 0:00:55]} Rh1 {[%emt 0:00:29]} 51. Nc4 {[%emt 0:00:39]} Rf1 {[%emt 0:00:33]} 52. Ne3 {[%emt 0:00:33]} Rf2 {[%emt 0:00:16]} 53. g5 {[%emt 0:00:24]} Ra2 {[%emt 0:02:25]} 54. Nd5 {[%emt 0:01:52]} Ra1 {[%emt 0:01:00]} 55. Nc7+ {[%emt 0:01:23]} Kd6 {[%emt 0:01:06]} 56. Nb5+ {[%emt 0:00:29]} Kc5 {[%emt 0:00:55]} 57. Nc3 {[%emt 0:00:12]} Rf1 {[%emt 0:01:39]} 58. Ne2 {[%emt 0:03:07] Threatens to win with Ng3.} Kd6 {[%emt 0:01:18]} 59. Nd4 {[%emt 0:00:53]} Rg1 {[%emt 0:01:02]} 60. Kf5 {[%emt 0:01:43]} Kc5 {[%emt 0:01:02]} 61. Ne2 {[%emt 0:01:06]} Rf1 {[%emt 0:00:22]} 62. f4 {[%emt 0:00:48] And now Ke5 would win.} Rf2 {[%emt 0:00:00]} 63. Nc3 {[%emt 0:01:27]} Kd4 {[%emt 0:00:30]} 64. Nd5 {[%emt 0:00:23] Hoping for Nf6.} Rf1 {[%emt 0:01:00]} 65. Nf6 {[%emt 0:00:46]} Re1 $1 {[%emt 0:01:19]} 66. e5 {[%emt 0:01:00]} Ra1 $2 {[%emt 0:00:44][%mdl 8192]} (66... Ke3 $11) 67. Ng4 {[%emt 0:01:26]} Ra7 {[%emt 0:00:02] [#]} 68. Nh6 $2 {[%emt 0:01:50]} (68. Kf6 $1 $18 Ke4 69. f5) 68... Ke3 $1 {[%emt 0:00:12]} 69. Kg4 {[%emt 0:01:01]} Ra4 {[%emt 0:01:10]} 70. Nf5+ {[%emt 0:00:12]} Kf2 $2 {[%emt 0:00:05][%mdl 8192] [#]} (70... Ke4 $11) 71. g6 $1 $18 {[%emt 0:01:17]} fxg6 {[%emt 0:00:14]} 72. Nh4 {[%emt 0:00:07]} Ke3 {[%emt 0:01:04]} 73. Nxg6 {[%emt 0:00:11]} Ke4 {[%emt 0:00:50] White mates.} 74. e6 {[%emt 0:00:58][%cal Be5e6,Be6e7][%mdl 32]} Kd5 {[%emt 0:00:29]} 75. e7 {[%emt 0:00:37]} Re4 {[%emt 0:00:31]} 76. Ne5 {[%emt 0:00:18] Weighted Error Value: White=0.17 (very precise) /Black=0.22 (precise)} 1-0

[Event "37th ECCC 2022"]
[Site "Mayrhofen"]
[Date "2022.10.05"]
[Round "3.12"]
[White "Kobo, Ori"]
[Black "Ragger, Markus"]
[Result "1/2-1/2"]
[ECO "D94"]
[WhiteElo "2544"]
[BlackElo "2632"]
[Annotator "TA"]
[PlyCount "60"]
[EventDate "2022.10.03"]
[EventType "team-tourn"]
[EventCountry "AUT"]
[SourceTitle "playchess.com"]
[Source "ChessBase"]
[SourceQuality "1"]
[TimeControl "40/5400+30:1800+30"]

{[%evp 15,60,0,0,0,0,9,6,8,10,11,17,12,11,22,19,18,23,0,0,0,0,0,0,0,0,0,0,0,0,0,0,0,0,0,0,0,0,0,0,0,0,0,0,0,0,0,0]} 1. d4 {[%emt 0:00:16]} Nf6 {[%emt 0:00:02]} 2. c4 {[%emt 0:00:20]} g6 {[%emt 0:00:02]} 3. Nc3 {[%emt 0:00:15]} d5 {[%emt 0:00:03]} 4. Nf3 {[%emt 0:00:20]} Bg7 {[%emt 0:00:06]} 5. e3 {[%emt 0:00:29]} O-O {[%emt 0:00:20]} 6. cxd5 {[%emt 0:00:12]} Nxd5 {[%emt 0:00:08]} 7. Bc4 {[%emt 0:00:11]} Nb6 {[%emt 0:00:28]} 8. Bb3 {[%emt 0:00:08]} c5 {[%emt 0:00:21] 8...c5 is better than 8...Nc6.} 9. O-O {[%emt 0:00:17] D94: Grünfeld: 4 Nf3 Bg7 5 e3.} Bg4 {[%emt 0:00:07]} 10. dxc5 {[%emt 0:00:58] [#] And now Qxd8 would win.} N6d7 {[%emt 0:02:42]} 11. Na4 {[%emt 0:07:19]} Qc7 12. h3 Bxf3 {[%emt 0:08:08]} 13. Qxf3 {[%emt 0:00:40]} ({Reject} 13. gxf3 Nxc5 14. Nxc5 Qxc5 $15) 13... Na6 14. c6 {[%emt 0:17:27]} Qxc6 {[%emt 0:05:34]} 15. Qxc6 {[%emt 0:00:21]} bxc6 {[%emt 0:00:02]} 16. Bc4 {[%emt 0:03:33]} Nac5 {[%emt 0:15:53] The position is equal.} 17. Nxc5 {[%emt 0:00:28]} Nxc5 {[%emt 0:00:02][%cal Bd7c5,Bc5e4,Be4d2][%mdl 32] [#]} 18. Rb1 $146 {[%emt 0:00:33]} ({Predecessor:} 18. Bd2 Rab8 19. Rab1 Bxb2 20. Ba5 Ne4 21. Ba6 Nc5 22. Bc4 Rfc8 23. Rfd1 {½-½ (84) Lin,Y (2119)-Xu,X (2466) Wuxi 2016}) 18... Rfd8 {[%emt 0:00:44] Prevents Bd2.} 19. Be2 {[%emt 0:18:58][%cal Bc4e2,Be2f3,Bf3c6][%mdl 32]} Ne4 {[%emt 0:12:18]} 20. Bf3 {[%emt 0:02:49]} Nd2 {[%emt 0:00:39]} 21. Bxd2 {[%emt 0:00:10]} Rxd2 {[%emt 0:00:02]} 22. Rfd1 {[%emt 0:02:21]} Rxd1+ {[%emt 0:09:28]} 23. Rxd1 {[%emt 0:00:10]} Bxb2 {[%emt 0:00:03]} 24. Bxc6 $11 {[%emt 0:03:32][%mdl 4096] Endgame KRB-KRB} Rc8 {[%emt 0:02:21]} 25. Bd5 {[%emt 0:00:17]} e6 {[%emt 0:01:03]} 26. Bb3 {[%emt 0:00:18]} Rc1 {[%emt 0:00:06]} 27. Rxc1 {[%emt 0:00:05]} Bxc1 {[%emt 0:00:03]} 28. Kf1 {[%emt 0:00:06]} Kf8 {[%emt 0:00:10]} 29. Ke2 {[%emt 0:00:06]} Ke7 {[%emt 0:00:12]} 30. Kd3 {[%emt 0:00:06]} Kd6 {[%emt 0:00:09] A balanced but interesting game.  Weighted Error Value: White=0.01 (flawless) /Black=0.00 (flawless)} 1/2-1/2

[Event "37th ECCC 2022"]
[Site "Mayrhofen"]
[Date "2022.10.05"]
[Round "3.13"]
[White "Pechac, Jergus"]
[Black "Vachier-Lagrave, Maxime"]
[Result "1/2-1/2"]
[ECO "D80"]
[WhiteElo "2633"]
[BlackElo "2747"]
[Annotator "TA"]
[PlyCount "99"]
[EventDate "2022.10.03"]
[EventType "team-tourn"]
[EventCountry "AUT"]
[SourceTitle "playchess.com"]
[Source "ChessBase"]
[SourceQuality "1"]
[TimeControl "40/5400+30:1800+30"]

{[%evp 9,99,25,28,31,27,13,29,9,37,15,19,22,22,14,6,0,0,0,0,7,13,0,0,0,20,11,10,14,123,154,154,131,137,133,147,140,141,-41,142,140,133,131,135,139,173,173,173,173,173,172,172,170,170,172,170,171,170,178,173,106,184,87,395,384,567,537,513,191,179,152,161,28,42,44,36,16,16,10,10,10,9,9,9,9,10,10,10,0,0,0,10,0]} 1. d4 {[%emt 0:00:08]} Nf6 {[%emt 0:00:05]} 2. c4 {[%emt 0:00:06]} g6 {[%emt 0:00:04]} 3. Nc3 {[%emt 0:00:30]} d5 {[%emt 0:00:04]} 4. Bg5 {[%emt 0:01:08]} Bg7 {[%emt 0:04:19]} 5. Bxf6 {[%emt 0:02:35]} Bxf6 {[%emt 0:00:05]} 6. cxd5 {[%emt 0:00:07] D80: Grünfeld: Unusual White 4th moves and 4 Bg5.} c5 {[%emt 0:00:05]} 7. dxc5 {[%emt 0:03:54]} Nd7 {[%emt 0:06:36]} 8. Rc1 {[%emt 0:00:37] White wants to play b4. White has an edge.} Nxc5 {[%emt 0:12:08]} 9. g3 {[%emt 0:00:08]} O-O {[%emt 0:01:48]} 10. Bg2 {[%emt 0:00:05]} Qb6 {[%emt 0:08:04]} 11. Qd2 {[%emt 0:00:40]} Rd8 {[%emt 0:00:10]} 12. h4 {[%emt 0:00:06]} Bf5 {[%emt 0:07:41]} 13. Nh3 {[%emt 0:00:08] [#]} Rac8 $146 {[%emt 0:10:34]} ({Predecessor:} 13... Bxc3 14. bxc3 Be4 15. Bxe4 Nxe4 16. Qf4 Qb2 17. c4 Rac8 18. Kf1 Rxd5 19. Kg2 Rd4 {1-0 (58) Krasenkow,M (2569)-Kosakowski,J (2436) Bydgoszcz 2022}) 14. O-O {[%emt 0:01:20]} Qb4 {[%emt 0:02:04]} 15. Rfe1 {[%emt 0:09:41]} Na4 $1 {[%emt 0:06:01][%cal Ra4c3]} 16. e4 {[%emt 0:18:43]} Nxb2 {[%emt 0:01:33][%cal Rf6c3]} 17. exf5 {[%emt 0:00:08]} Bxc3 {[%emt 0:00:38]} 18. Qh6 {[%emt 0:00:06][%cal Oh3g5]} Bxe1 {[%emt 0:16:21] [#]} (18... Bg7 $1 $11 {keeps the balance.} 19. Qe3 Rxc1 20. Rxc1 Nc4) 19. Ng5 $1 $16 {[%emt 0:00:06]} Bxf2+ {[%emt 0:00:04]} 20. Kh2 {[%emt 0:00:06]} Bxg3+ {[%emt 0:00:03]} 21. Kxg3 {[%emt 0:00:05]} Qd6+ {[%emt 0:00:06]} 22. Kh3 {[%emt 0:00:05][%cal Bg3h3,Bh3h2,Bh2h1,Bh1g2][%mdl 32] Chess con chili. White is more active.} Qf6 {[%emt 0:00:05]} 23. Qxh7+ {[%emt 0:00:16]} Kf8 {[%emt 0:00:20]} 24. Rf1 {[%emt 0:00:48]} Rc3+ {[%emt 0:03:28]} 25. Kh2 {[%emt 0:00:32][%cal Og5e6] Ne6+! would kill now.} gxf5 {[%emt 0:01:47]} 26. Rxf5 {[%emt 0:14:24] Threatening mate with Ne6+.} Qd6+ {[%emt 0:00:06]} 27. Kh1 {[%emt 0:00:20][%csl Gf5,Gg5][%cal Rh7f7]} Rc1+ {[%emt 0:00:07]} 28. Bf1 {[%emt 0:00:04]} Rxf1+ {[%emt 0:00:45]} 29. Kg2 {[%emt 0:01:04][%csl Gf5,Gg5][%cal Rh7f7]} Ke8 {[%emt 0:02:42]} 30. Qxf7+ $40 {[%emt 0:05:59][%mdl 128] Black is in trouble.} ({Not} 30. Kxf1 Qg6 31. Qxf7+ Qxf7 32. Nxf7 Rd7 $11) (30. Nxf7 Rg1+ 31. Kxg1 Qg3+ 32. Kh1 Qh3+ 33. Kg1 Qg3+ 34. Kh1 Qh3+ 35. Kg1 Qg3+ $11) 30... Kd7 {[%emt 0:00:05]} 31. Rxf1 {[%emt 0:01:02]} Kc8 {[%emt 0:00:19]} 32. Qe6+ {[%emt 0:09:48]} Qxe6 {[%emt 0:00:18]} 33. dxe6 $18 {[%emt 0:00:50][%mdl 4096] Endgame KRN-KRN} Nc4 {[%emt 0:00:05] And now ...Ne3+ would win.} 34. Rf7 {[%emt 0:01:39]} (34. Rc1 $18 b5 35. Nf7) 34... Rh8 {[%emt 0:01:50]} (34... Ne3+ $16 35. Kf3 Nd5) 35. Kg3 {[%emt 0:07:59]} ({Don't do} 35. Rxe7 $6 Rxh4 36. Kg3 Rd4 $14) (35. Kh3 $1 $18) 35... Nd6 $2 {[%emt 0:05:53][%mdl 8192]} (35... Ne3 $16) 36. Kg4 {[%emt 0:00:42]} Kd8 {[%emt 0:00:10]} (36... Nc4 {is a better defense.} 37. Rxe7 Ne3+ 38. Kf3 Nd5) 37. h5 {[%emt 0:02:47]} Ke8 {[%emt 0:00:05]} 38. Rf1 {[%emt 0:06:47]} (38. Rh7 Rxh7 39. Nxh7) 38... Rh6 {[%emt 0:02:08] [#]} 39. a4 {[%emt 0:01:13]} Nc4 {[%emt 0:04:59] [#] aiming for ...Ne3+.} 40. Rc1 {[%emt 0:04:19]} (40. Re1 $1 $18) 40... Ne5+ {[%emt 0:00:38]} 41. Kh4 {[%emt 0:30:21][%cal Rc1c8]} Kf8 $1 {[%emt 0:30:17]} 42. Rc5 {[%emt 0:05:27]} Nc6 {[%emt 0:00:32] The position is equal.} 43. a5 {[%emt 0:04:35][%cal Oa5a6] Black must now prevent a6!} a6 $1 {[%emt 0:02:20]} 44. Rf5+ {[%emt 0:00:08]} Kg7 {[%emt 0:02:01]} 45. Rf7+ {[%emt 0:00:00]} Kg8 {[%emt 0:00:00][%cal Oh6e6]} 46. Rf4 {[%emt 0:00:00]} Nxa5 {[%emt 0:00:00]} 47. Rg4 {[%emt 0:00:00]} Kf8 {[%emt 0:00:00]} 48. Rf4+ {[%emt 0:00:00]} Kg8 $1 {[%emt 0:00:00]} 49. Rg4 {[%emt 0:00:00] Intending Nf7+ and mate.} Kf8 {[%emt 0:00:00]} 50. Rf4+ {[%emt 0:00:00] White really could win this.  Weighted Error Value: White=0.19 (very precise) /Black=0.20 (precise)} 1/2-1/2

[Event "37th ECCC 2022"]
[Site "Mayrhofen"]
[Date "2022.10.05"]
[Round "3.14"]
[White "Esipenko, Andrey"]
[Black "Banusz, Tamas"]
[Result "1/2-1/2"]
[ECO "D12"]
[WhiteElo "2668"]
[BlackElo "2622"]
[Annotator "TA"]
[PlyCount "145"]
[EventDate "2022.10.03"]
[EventType "team-tourn"]
[EventCountry "AUT"]
[SourceTitle "playchess.com"]
[Source "ChessBase"]
[SourceQuality "1"]
[TimeControl "40/5400+30:1800+30"]

{[%evp 15,145,14,21,6,17,18,31,21,19,16,7,14,4,6,19,18,27,28,8,0,0,0,3,0,0,0,0,0,1,0,4,7,22,14,16,4,26,0,0,-8,26,0,12,10,27,10,43,40,21,0,22,-12,22,20,28,27,27,26,37,43,42,47,74,10,10,9,20,7,19,0,4,4,11,0,17,17,17,17,17,17,124,125,125,125,125,0,0,0,0,0,0,0,0,0,0,0,0,0,0,0,0,0,0,0,0,0,0,3,8,8,8,8,8,8,13,0,0,0,0,-379,-334,-262,-206,-451,-451,-451,0,0,0,-403,0,0]} 1. d4 {[%emt 0:00:06]} d5 {[%emt 0:00:09]} 2. c4 {[%emt 0:00:28]} c6 {[%emt 0:00:09]} 3. Nf3 {[%emt 0:00:17]} Nf6 {[%emt 0:00:05]} 4. e3 {[%emt 0:00:25]} Bf5 {[%emt 0:00:18]} 5. Nc3 {[%emt 0:00:22]} e6 {[%emt 0:00:08]} 6. Nh4 {[%emt 0:00:14]} Be4 {[%emt 0:00:04]} 7. f3 {[%emt 0:01:03]} Bg6 {[%emt 0:00:05]} 8. Qb3 {[%emt 0:00:22]} Qc7 {[%emt 0:00:05]} 9. Bd2 {[%emt 0:00:32] D12: Slav Defence: 3 Nf3 Nf6 4 e3 Bf5.} Be7 {[%emt 0:00:16]} 10. Nxg6 {[%emt 0:04:42]} hxg6 {[%emt 0:00:07]} 11. O-O-O {[%emt 0:00:15] White is slightly better.} dxc4 {[%emt 0:02:05]} 12. Bxc4 {[%emt 0:00:08]} a6 {[%emt 0:01:42]} 13. Ne4 {[%emt 0:05:59]} Nxe4 {[%emt 0:00:26]} 14. fxe4 {[%emt 0:00:08]} b5 {[%emt 0:00:21]} 15. Be2 {[%emt 0:00:23]} c5 {[%emt 0:00:28]} 16. Kb1 {[%emt 0:14:06]} Nc6 {[%emt 0:00:38]} 17. d5 {[%emt 0:04:16]} exd5 {[%emt 0:01:14]} 18. exd5 {[%emt 0:00:56]} Ne5 {[%emt 0:00:12]} 19. h4 {[%emt 0:04:00]} Bd6 {[%emt 0:03:58]} 20. g4 {[%emt 0:06:38]} c4 {[%emt 0:22:37]} 21. Qc2 {[%emt 0:00:22]} O-O-O {[%emt 0:10:17]} 22. h5 {[%emt 0:02:54]} Kb8 {[%emt 0:03:35]} 23. Bc3 {[%emt 0:00:47] [#]} g5 $146 {[%emt 0:04:41]} ({Predecessor:} 23... Qe7 24. Qe4 Rhe8 25. a3 Qg5 26. Qf4 Qe7 27. Qf2 Rd7 28. e4 Rb7 29. Qe3 Ka8 30. hxg6 Nxg6 {½-½ (40) Neto,H (2568)-Zugrav,W (2574) ICCF email 2020}) 24. Qf5 {[%emt 0:03:19]} Qe7 {[%emt 0:01:35]} 25. Rdf1 {[%emt 0:03:45]} Rh6 {[%emt 0:04:49]} 26. Bd1 {[%emt 0:10:45][%cal Be2d1,Bd1c2,Bc2f5][%mdl 32]} (26. Rc1 $5 {[%cal Rb2b3]}) 26... f6 {[%emt 0:02:28]} 27. Bc2 {[%emt 0:00:49]} Qd7 {[%emt 0:05:15]} 28. Rd1 {[%emt 0:08:53]} Qe7 {[%emt 0:04:25]} (28... Nxg4 29. Qxd7 Rxd7 30. Bf5 Nxe3 31. Bxd7 $16) 29. Qe6 {[%emt 0:07:26]} Qc7 {[%emt 0:14:18]} 30. Rdf1 {[%emt 0:04:14]} Rd7 {[%emt 0:05:16]} 31. Bf5 {[%emt 0:03:18]} Rd8 {[%emt 0:00:26]} 32. Bc2 {[%emt 0:01:31]} Rd7 {[%emt 0:00:21]} 33. Bd4 {[%emt 0:05:28]} Kb7 {[%emt 0:01:58]} 34. Bf5 {[%emt 0:00:59] A strong pair of Bishops.} Rd8 {[%emt 0:00:52]} 35. Be4 {[%emt 0:00:48]} Nd7 {[%emt 0:01:24]} 36. Qf7 {[%emt 0:01:06]} Ne5 {[%emt 0:02:43]} 37. Qxc7+ {[%emt 0:00:29]} Kxc7 {[%emt 0:00:07]} 38. Bf5 {[%emt 0:00:05]} Nd7 {[%emt 0:01:50]} 39. e4 {[%emt 0:02:55]} ({White should play} 39. b3 $16) 39... Be5 $11 {[%emt 0:01:36]} 40. Be3 {[%emt 0:01:41]} Kd6 {[%emt 0:00:33]} 41. Bd2 {[%emt 0:09:50] next Bb4+ is good for White.} Nc5 {[%emt 0:03:30]} 42. Bb4 {[%emt 0:02:02]} Ra8 {[%emt 0:04:16]} 43. Rd1 {[%emt 0:00:13]} Rhh8 {[%emt 0:01:23]} 44. a4 {[%emt 0:06:54]} a5 {[%emt 0:13:16]} 45. Bxc5+ {[%emt 0:00:46]} Kxc5 {[%emt 0:00:01]} 46. d6 {[%emt 0:00:29][%cal Bd5d6,Bd6d7][%mdl 32] [#] And now Rd5+ would win.} bxa4 {[%emt 0:00:20] ...Rab8 is the strong threat.} 47. Rd5+ $1 {[%emt 0:00:51]} Kc6 {[%emt 0:00:29]} (47... Kb4 $1 $11) 48. Rc1 $16 {[%emt 0:00:41]} c3 {[%emt 0:00:48]} 49. d7 {[%emt 0:01:23] White is more active.} Rab8 {[%emt 0:05:04]} 50. Rxe5 {[%emt 0:00:49]} fxe5 $11 {[%emt 0:00:08]} 51. Rxc3+ $16 {[%emt 0:00:03][%mdl 4096] Endgame KRR-KRB} Kd6 {[%emt 0:00:34]} 52. Ka2 {[%emt 0:04:55]} Rhd8 {[%emt 0:03:02]} 53. Rd3+ {[%emt 0:01:42]} Kc6 {[%emt 0:00:21]} 54. Rc3+ {[%emt 0:00:15]} Kd6 {[%emt 0:00:19]} 55. Rc8 {[%emt 0:01:58]} Ke7 {[%emt 0:03:15]} 56. Rc5 {[%emt 0:01:55]} Kf6 {[%emt 0:01:17]} 57. Rc6+ {[%emt 0:01:52]} Kf7 {[%emt 0:00:43]} 58. Rc5 {[%emt 0:00:35]} Kf6 {[%emt 0:00:01]} 59. Rc6+ {[%emt 0:03:19]} Kf7 {[%emt 0:00:01]} 60. Rg6 {[%emt 0:01:23]} Rb5 {[%emt 0:02:06]} 61. Be6+ {[%emt 0:00:22]} Ke7 {[%emt 0:04:29]} 62. Bc4 {[%emt 0:00:07]} Rb4 {[%emt 0:00:54]} 63. Rxg7+ {[%emt 0:00:04]} Kd6 {[%emt 0:00:10]} 64. Bd5 {[%emt 0:00:55] Threatens to win with h6.} Rxd7 {[%emt 0:01:15]} 65. h6 {[%emt 0:00:50]} Rd8 $1 {[%emt 0:01:11]} 66. Rxg5 {[%emt 0:01:34]} Rdb8 $1 {[%emt 0:00:11]} 67. h7 $2 {[%emt 0:00:40][%mdl 8192]} (67. Ka3 $11 Rxb2 68. Rg6+ Ke7 69. Rg7+ Kd6 70. Rg6+ Ke7 71. Rg7+ Kd6 72. Rg6+) 67... Rxb2+ $19 {[%emt 0:00:23]} 68. Ka3 {[%emt 0:00:04]} Rh2 {[%emt 0:00:42] White must now prevent ...Rh3+.} 69. Bg8 $2 {[%emt 0:00:59] [#]} (69. Rg6+ Kc5 70. Rc6+ (70. Rg8 $2 Rb1 $19) 70... Kb5 71. Rc1 (71. Rc7 $2 Rh3+ 72. Ka2 Rf8 $19) 71... Rh3+ 72. Ka2) 69... Rh3+ $1 {[%emt 0:00:38]} 70. Ka2 {[%emt 0:00:34]} Rh2+ $2 {[%emt 0:00:01]} ({Black should try} 70... Rf8 $19 71. Rf5 Rxf5 72. gxf5 Ke7) 71. Ka3 $11 {[%emt 0:00:05] aiming for Rh5.} Rh3+ $2 {[%emt 0:00:01][%mdl 8192]} (71... Rh1 $11 72. Ka2 (72. Rg6+ Kc5 $19) 72... Rh2+ 73. Ka3) 72. Ka2 $1 $19 {[%emt 0:00:35] Strongly threatening Rh5.} Rh2+ $2 {[%emt 0:00:03]} (72... Rf8 $19 {( -> ...Rf2+)} 73. Rf5 Rxf5 74. gxf5 Ke7) 73. Ka3 {[%emt 0:00:09] Weighted Error Value: White=0.10 (very precise) /Black=0.07 (flawless)} 1/2-1/2